[Event "2nd Namma Bengaluru Open-A 2025"]
[Site "Bengaluru"]
[Date "2025.04.17"]
[Round "9.17"]
[White "Ram Aravind L N"]
[Black "Nitish Belurkar"]
[Result "0-1"]
[Annotator "RC"]
[ECO "B00"]
[WhiteElo "2245"]
[BlackElo "2441"]
[PlyCount "120"]
[EventDate "2025.04.10"]
[EventType "swiss"]
[EventCountry "IND"]
[SourceTitle "playchess.com"]
[Source "ChessBase"]
[SourceQuality "1"]
[TimeControl "5400+30"]

1. e4 {[%emt 0:00:23]} Nc6 {[%emt 0:00:10]} 2. d4 {[%emt 0:03:05]} d5 {[%emt 0:00:05]} 3. e5 {[%emt 0:00:28]} Bf5 {[%emt 0:00:09]} 4. c3 {[%emt 0:04:17]} e6 {[%emt 0:00:16]} 5. Ne2 {[%emt 0:05:04]} f6 {[%emt 0:09:52]} 6. f4 {[%emt 0:06:23]} g5 {[%emt 0:06:14]} 7. Ng3 {[%emt 0:08:27]} Bg6 {[%emt 0:00:07]} 8. exf6 {[%emt 0:02:17]} gxf4 {[%emt 0:05:51]} 9. f7+ {[%emt 0:00:14]} Bxf7 {[%emt 0:00:07]} 10. Bxf4 {[%emt 0:00:05]} Qh4 {[%emt 0:04:26]} 11. Qc1 {[%emt 0:10:25]} Bh6 {[%emt 0:06:12]} 12. Bxh6 {[%emt 0:00:20]} Nxh6 {[%emt 0:00:05]} 13. Nd2 {[%emt 0:00:13]} Bh5 {[%emt 0:06:17]} 14. Nde4 {[%emt 0:08:12]} Nf5 {[%emt 0:01:02]} 15. Qg5 {[%emt 0:01:34]} Bg6 {[%emt 0:00:20]} 16. Qxh4 {[%emt 0:06:17]} Nxh4 {[%emt 0:00:07]} 17. Nc5 {[%emt 0:01:49]} Ke7 {[%emt 0:01:49]} 18. O-O-O {[%emt 0:10:21]} b6 {[%emt 0:00:26]} 19. Nd3 {[%emt 0:01:40]} Raf8 {[%emt 0:03:13]} 20. Ne2 {[%emt 0:01:55]} Rhg8 {[%emt 0:07:16]} 21. Ng3 {[%emt 0:09:44]} Kd6 {[%emt 0:13:05]} 22. Rd2 {[%emt 0:01:40]} Nd8 {[%emt 0:04:38]} 23. Ne5 {[%emt 0:00:59]} c5 {[%emt 0:01:54]} 24. Nxg6 {[%emt 0:01:32]} hxg6 {[%emt 0:00:09]} 25. c4 {[%emt 0:02:05]} Rf4 {[%emt 0:03:14]} 26. dxc5+ {[%emt 0:00:48]} bxc5 {[%emt 0:00:05]} 27. Bd3 {[%emt 0:03:17]} Nc6 {[%emt 0:05:14]} 28. Ne2 {[%emt 0:06:19]} Rf2 {[%emt 0:00:58]} 29. cxd5 {[%emt 0:00:19]} exd5 {[%emt 0:00:05]} 30. Bc4 {[%emt 0:00:48]} Ne7 {[%emt 0:00:18]} 31. Rhd1 {[%emt 0:01:30]} Kc7 {[%emt 0:01:04]} 32. Bb3 {[%emt 0:00:51]} Rgf8 {[%emt 0:07:59]} 33. g3 {[%emt 0:01:08]} Ng2 {[%emt 0:02:11]} 34. Nc3 {[%emt 0:00:35]} Ne3 {[%emt 0:01:40]} 35. Rxf2 {[%emt 0:00:59]} Rxf2 {[%emt 0:00:03]} 36. Re1 {[%emt 0:00:05]} d4 {[%emt 0:00:08]} 37. Ne4 {[%emt 0:00:34]} Rf5 {[%emt 0:00:28]} 38. Kd2 {[%emt 0:00:29]} Nc6 {[%emt 0:01:26]} 39. Rc1 {[%emt 0:00:18]} Kb6 {[%emt 0:00:16]} 40. Ke2 {[%emt 0:01:01]} Re5 {[%emt 0:01:03]} 41. Kf3 {[%emt 0:00:07]} Nb4 {[%emt 0:01:04]} 42. Bc4 {[%emt 0:01:45]} Rf5+ {[%emt 0:02:14]} 43. Ke2 {[%emt 0:00:02]} Re5 {[%emt 0:00:05]} 44. Kf3 {[%emt 0:00:01]} g5 {[%emt 0:00:25]} 45. Nd6 {[%emt 0:00:55]} Kc6 {[%emt 0:00:37]} 46. Nf7 {[%emt 0:00:12]} Nxc4 {[%emt 0:00:51]} 47. Nxe5+ {[%emt 0:00:23]} Nxe5+ {[%emt 0:00:02]} 48. Ke4 {[%emt 0:00:01]} Ned3 {[%emt 0:00:24]} 49. Rf1 {[%emt 0:01:04]} Nxb2 {[%emt 0:00:08]} 50. h4 {[%emt 0:00:03]} gxh4 {[%emt 0:00:44]} 51. gxh4 {[%emt 0:00:00]} Nc4 {[%emt 0:00:10]} 52. Rf6+ {[%emt 0:00:43]} Nd6+ {[%emt 0:01:43]} 53. Ke5 {[%emt 0:00:02]} Nd3+ {[%emt 0:00:17]} 54. Ke6 {[%emt 0:00:01]} c4 {[%emt 0:00:06]} 55. Ke7 {[%emt 0:01:37]} c3 {[%emt 0:00:10]} 56. Rxd6+ {[%emt 0:00:03]} Kb5 {[%emt 0:00:04]} 57. a4+ {[%emt 0:02:09]} Kc4 {[%emt 0:00:34]} 58. h5 {[%emt 0:00:14]} c2 {[%emt 0:01:36]} 59. Rc6+ {[%emt 0:00:03]} Nc5 {[%emt 0:00:03]} 60. Kd6 {[%emt 0:00:04]} d3 {[%emt 0:00:03]} 0-1

[Event "2nd Namma Bengaluru Open-A 2025"]
[Site "Bengaluru"]
[Date "2025.04.17"]
[Round "9.18"]
[White "Schekachikhin, Maksim"]
[Black "Koustuv Dash"]
[Result "1/2-1/2"]
[Annotator "RC"]
[ECO "B10"]
[WhiteElo "2370"]
[BlackElo "2131"]
[PlyCount "82"]
[EventDate "2025.04.10"]
[EventType "swiss"]
[EventCountry "IND"]
[SourceTitle "playchess.com"]
[Source "ChessBase"]
[SourceQuality "1"]
[TimeControl "5400+30"]

1. e4 {[%emt 0:00:03]} c6 {[%emt 0:03:57]} 2. Nf3 {[%emt 0:00:28]} d5 {[%emt 0:00:12]} 3. exd5 {[%emt 0:00:19]} cxd5 {[%emt 0:00:06]} 4. Ne5 {[%emt 0:00:17]} a6 {[%emt 0:00:19]} 5. d4 {[%emt 0:00:26]} Nc6 {[%emt 0:00:28]} 6. c3 {[%emt 0:01:17]} Nxe5 {[%emt 0:05:44]} 7. dxe5 {[%emt 0:00:12]} Bf5 {[%emt 0:01:08]} 8. Bd3 {[%emt 0:03:13]} Bxd3 {[%emt 0:01:03]} 9. Qxd3 {[%emt 0:00:08]} e6 {[%emt 0:01:08]} 10. O-O {[%emt 0:00:13]} Qc7 {[%emt 0:07:26]} 11. Re1 {[%emt 0:04:56]} Ne7 {[%emt 0:01:27]} 12. Nd2 {[%emt 0:00:53]} Nf5 {[%emt 0:00:58]} 13. a4 {[%emt 0:06:42]} Be7 {[%emt 0:11:03]} 14. Nf3 {[%emt 0:02:15]} b6 {[%emt 0:08:45]} 15. Bf4 {[%emt 0:21:51]} O-O {[%emt 0:05:38]} 16. Rac1 {[%emt 0:03:46]} Rfc8 {[%emt 0:02:10]} 17. Nd4 {[%emt 0:08:48]} Nxd4 {[%emt 0:12:00]} 18. cxd4 {[%emt 0:00:47]} Qb7 {[%emt 0:00:12]} 19. h3 {[%emt 0:00:29]} Rc7 {[%emt 0:36:16]} 20. Rc2 Rxc2 {[%emt 0:00:00]} 21. Rd1 {[%emt 0:43:57]} Rc1 22. Rxc1 {[%emt 0:00:00]} Rc8 {[%emt 0:00:00]} 23. Rc2 {[%emt 0:00:00]} Rxc2 {[%emt 0:00:00]} 24. Qxc2 {[%emt 0:00:00]} h6 {[%emt 0:00:00]} 25. Be3 {[%emt 0:00:00]} Bd8 {[%emt 0:00:00]} 26. b3 {[%emt 0:00:00]} Qc7 {[%emt 0:00:00]} 27. Qd3 {[%emt 0:00:00]} Qc8 {[%emt 0:00:00]} 28. g3 {[%emt 0:00:00]} Be7 {[%emt 0:00:00]} 29. Kg2 {[%emt 0:00:00]} Bb4 {[%emt 0:00:00]} 30. Bd2 {[%emt 0:00:00]} Bxd2 {[%emt 0:00:00]} 31. Qxd2 {[%emt 0:00:00]} Qc6 {[%emt 0:00:00]} 32. Qb4 {[%emt 0:00:00]} b5 {[%emt 0:00:00]} 33. axb5 {[%emt 0:00:00]} Qxb5 {[%emt 0:00:00]} 34. Qxb5 {[%emt 0:00:00]} axb5 {[%emt 0:00:00]} 35. g4 {[%emt 0:00:00]} b4 {[%emt 0:00:00]} 36. f4 {[%emt 0:00:00]} g6 {[%emt 0:00:00]} 37. Kg3 {[%emt 0:00:00]} Kh7 {[%emt 0:00:00]} 38. h4 {[%emt 0:00:00]} Kg7 {[%emt 0:00:00]} 39. f5 {[%emt 0:00:00]} g5 {[%emt 0:00:18]} 40. f6+ {[%emt 0:00:00]} Kg6 {[%emt 0:00:13]} 41. h5+ {[%emt 0:00:00]} Kh7 {[%emt 0:00:04]} 1/2-1/2

[Event "2nd Namma Bengaluru Open-A 2025"]
[Site "Bengaluru"]
[Date "2025.04.17"]
[Round "9.19"]
[White "Manish Anto Cristiano F"]
[Black "Gochelashvili, David"]
[Result "1/2-1/2"]
[Annotator "RC"]
[ECO "B36"]
[WhiteElo "2361"]
[BlackElo "2227"]
[PlyCount "132"]
[EventDate "2025.04.10"]
[EventType "swiss"]
[EventCountry "IND"]
[SourceTitle "playchess.com"]
[Source "ChessBase"]
[SourceQuality "1"]
[TimeControl "5400+30"]

1. e4 {[%emt 0:00:03]} c5 {[%emt 0:04:53]} 2. Nf3 {[%emt 0:00:16]} Nc6 {[%emt 0:00:15]} 3. d4 {[%emt 0:00:14]} cxd4 {[%emt 0:00:05]} 4. Nxd4 {[%emt 0:00:10]} g6 {[%emt 0:00:30]} 5. c4 {[%emt 0:00:18]} Nf6 {[%emt 0:00:12]} 6. Nc3 {[%emt 0:00:16]} Nxd4 {[%emt 0:00:42]} 7. Qxd4 {[%emt 0:00:11]} d6 {[%emt 0:00:04]} 8. Be2 {[%emt 0:00:28]} Bg7 {[%emt 0:00:07]} 9. O-O {[%emt 0:00:33]} O-O {[%emt 0:00:07]} 10. Qd3 {[%emt 0:00:21]} a6 {[%emt 0:00:52]} 11. Be3 {[%emt 0:00:31]} Bd7 {[%emt 0:00:13]} 12. Rfd1 {[%emt 0:01:53]} b5 {[%emt 0:00:39]} 13. cxb5 {[%emt 0:00:16]} axb5 {[%emt 0:00:05]} 14. Nxb5 {[%emt 0:00:11]} Bxb5 {[%emt 0:01:03]} 15. Qxb5 {[%emt 0:00:09]} Rb8 {[%emt 0:00:16]} 16. Qc4 {[%emt 0:00:18]} Rxb2 {[%emt 0:00:31]} 17. Bd4 {[%emt 0:00:37]} Rb8 {[%emt 0:05:15]} 18. a4 {[%emt 0:00:42]} Qa5 {[%emt 0:03:30]} 19. Bc3 {[%emt 0:01:11]} Qa8 {[%emt 0:30:45]} 20. Bxf6 {[%emt 0:30:39]} Bxf6 {[%emt 0:04:58]} 21. Ra2 {[%emt 0:00:47]} Rfc8 {[%emt 0:00:48]} 22. Qd5 {[%emt 0:00:58]} Qa7 {[%emt 0:03:22]} 23. Bb5 {[%emt 0:04:26]} Rc5 {[%emt 0:00:06]} 24. Qd2 {[%emt 0:00:19]} Rbc8 {[%emt 0:03:43]} 25. g3 {[%emt 0:01:50]} h5 {[%emt 0:01:03]} 26. h4 {[%emt 0:09:11]} Rc3 {[%emt 0:00:48]} 27. Kg2 {[%emt 0:03:54]} R8c5 {[%emt 0:03:36]} 28. Qe2 {[%emt 0:01:50]} Qa5 {[%emt 0:08:24]} 29. Rd5 {[%emt 0:01:52]} Kg7 {[%emt 0:12:18]} 30. Rxc5 {[%emt 0:00:13]} Rxc5 {[%emt 0:00:10]} 31. Rc2 {[%emt 0:00:25]} Bd4 {[%emt 0:00:56]} 32. Rxc5 {[%emt 0:01:51]} dxc5 {[%emt 0:00:26]} 33. Qf3 {[%emt 0:01:31]} Qd2 {[%emt 0:03:39]} 34. Be8 {[%emt 0:08:38]} Qa2 {[%emt 0:00:10]} 35. Bc6 {[%emt 0:00:32]} c4 {[%emt 0:02:02]} 36. e5 {[%emt 0:02:20]} c3 {[%emt 0:04:13]} 37. Be4 {[%emt 0:08:11]} Qxa4 {[%emt 0:00:07]} 38. Bd5 {[%emt 0:01:05]} e6 {[%emt 0:03:36]} 39. Qf6+ {[%emt 0:00:07]} Kg8 {[%emt 0:01:24]} 40. Qd8+ {[%emt 0:02:05]} Kh7 {[%emt 0:00:16]} 41. Qe7 {[%emt 0:02:02]} Qa7 {[%emt 0:02:21]} 42. Qxa7 {[%emt 0:02:13]} Bxa7 {[%emt 0:00:05]} 43. Bb3 {[%emt 0:00:06]} Kg7 {[%emt 0:00:31]} 44. f4 {[%emt 0:00:11]} Be3 {[%emt 0:01:06]} 45. Kf3 {[%emt 0:00:33]} Bd2 {[%emt 0:00:01]} 46. Ke2 {[%emt 0:03:46]} Kf8 {[%emt 0:00:04]} 47. Ba4 {[%emt 0:00:10]} Ke7 {[%emt 0:00:05]} 48. Bb5 {[%emt 0:00:53]} Bc1 {[%emt 0:00:25]} 49. Kd3 {[%emt 0:00:05]} c2 {[%emt 0:02:51]} 50. Kxc2 {[%emt 0:00:08]} Be3 {[%emt 0:00:03]} 51. Be2 {[%emt 0:00:52]} Bf2 {[%emt 0:00:55]} 52. g4 {[%emt 0:00:11]} hxg4 {[%emt 0:01:16]} 53. Kd3 {[%emt 0:04:13]} g3 {[%emt 0:00:05]} 54. Bf1 {[%emt 0:00:05]} Kd7 {[%emt 0:00:19]} 55. Ke4 {[%emt 0:00:05]} Kc6 {[%emt 0:00:23]} 56. Kf3 {[%emt 0:01:28]} Kc5 {[%emt 0:00:20]} 57. Ba6 {[%emt 0:01:51]} Be1 {[%emt 0:00:05]} 58. Bb7 {[%emt 0:02:08]} Kd4 {[%emt 0:01:34]} 59. Bc6 {[%emt 0:00:09]} g2 {[%emt 0:00:13]} 60. Kxg2 {[%emt 0:00:06]} Ke3 {[%emt 0:00:29]} 61. Be8 {[%emt 0:01:12]} Kxf4 {[%emt 0:00:11]} 62. Bxf7 {[%emt 0:00:05]} Kf5 {[%emt 0:00:08]} 63. Kh3 {[%emt 0:02:15]} Bc3 {[%emt 0:00:12]} 64. h5 {[%emt 0:01:00]} g5 {[%emt 0:00:03]} 65. Bxe6+ {[%emt 0:00:16]} Kxe6 {[%emt 0:00:08]} 66. Kg4 {[%emt 0:00:03]} Kxe5 {[%emt 0:00:55]} 1/2-1/2

[Event "2nd Namma Bengaluru Open-A 2025"]
[Site "Bengaluru"]
[Date "2025.04.17"]
[Round "9.20"]
[White "Mehta Naitik R"]
[Black "Shahil Dey"]
[Result "1/2-1/2"]
[Annotator "RC"]
[ECO "C00"]
[WhiteElo "2227"]
[BlackElo "2360"]
[PlyCount "112"]
[EventDate "2025.04.10"]
[EventType "swiss"]
[EventCountry "IND"]
[SourceTitle "playchess.com"]
[Source "ChessBase"]
[SourceQuality "1"]
[TimeControl "5400+30"]

1. e4 {[%emt 0:00:08]} c5 {[%emt 0:00:06]} 2. Nf3 {[%emt 0:00:05]} e6 {[%emt 0:00:05]} 3. g3 {[%emt 0:00:33]} Nc6 {[%emt 0:00:06]} 4. Qe2 {[%emt 0:02:58]} e5 {[%emt 0:01:04]} 5. Bg2 {[%emt 0:00:30]} Nf6 {[%emt 0:00:06]} 6. O-O {[%emt 0:00:35]} Be7 {[%emt 0:00:34]} 7. c3 {[%emt 0:00:40]} d6 {[%emt 0:00:35]} 8. Na3 {[%emt 0:01:41]} O-O {[%emt 0:05:56]} 9. d3 {[%emt 0:00:14]} Re8 {[%emt 0:02:18]} 10. Nc4 {[%emt 0:00:21]} Be6 {[%emt 0:03:06]} 11. Ne3 {[%emt 0:02:21]} h6 {[%emt 0:08:34]} 12. Nh4 {[%emt 0:18:20]} d5 {[%emt 0:03:20]} 13. Nhf5 {[%emt 0:12:37]} Bf8 {[%emt 0:00:29]} 14. exd5 {[%emt 0:00:06]} Nxd5 {[%emt 0:01:40]} 15. Nxd5 {[%emt 0:00:06]} Bxf5 {[%emt 0:12:14]} 16. Be3 {[%emt 0:13:17]} Kh8 {[%emt 0:06:18]} 17. Qd2 {[%emt 0:08:03]} Qd7 {[%emt 0:00:55]} 18. f4 {[%emt 0:01:55]} Rad8 {[%emt 0:03:15]} 19. Rae1 {[%emt 0:00:44]} e4 {[%emt 0:01:17]} 20. dxe4 {[%emt 0:01:39]} Bxe4 {[%emt 0:00:20]} 21. c4 {[%emt 0:00:05]} f5 {[%emt 0:09:18]} 22. Rd1 {[%emt 0:01:57]} Qf7 {[%emt 0:00:30]} 23. Qf2 {[%emt 0:01:53]} b6 {[%emt 0:00:21]} 24. Bxe4 {[%emt 0:16:22]} Rxe4 {[%emt 0:00:17]} 25. b3 {[%emt 0:01:11]} Rde8 {[%emt 0:04:09]} 26. Rfe1 {[%emt 0:00:53]} g6 {[%emt 0:01:13]} 27. Nc3 {[%emt 0:07:31]} R4e6 {[%emt 0:00:31]} 28. Qf3 {[%emt 0:01:03]} Bg7 {[%emt 0:01:13]} 29. Bf2 {[%emt 0:00:19]} Nd4 {[%emt 0:02:55]} 30. Qd5 {[%emt 0:00:16]} Rxe1+ {[%emt 0:09:06]} 31. Rxe1 {[%emt 0:00:02]} Rxe1+ {[%emt 0:00:14]} 32. Bxe1 {[%emt 0:00:01]} Qxd5 {[%emt 0:09:39]} 33. Nxd5 {[%emt 0:00:05]} Nf3+ {[%emt 0:00:06]} 34. Kf2 {[%emt 0:00:34]} Nxh2 {[%emt 0:00:04]} 35. Ne7 {[%emt 0:00:33]} Ng4+ {[%emt 0:02:54]} 36. Ke2 {[%emt 0:00:05]} Bf6 {[%emt 0:01:04]} 37. Nc8 {[%emt 0:00:32]} Kg7 {[%emt 0:01:56]} 38. Nxa7 {[%emt 0:00:07]} Kf7 {[%emt 0:00:35]} 39. a4 {[%emt 0:02:36]} Ke6 {[%emt 0:00:43]} 40. a5 {[%emt 0:03:22]} bxa5 {[%emt 0:00:05]} 41. Bxa5 {[%emt 0:00:01]} g5 {[%emt 0:01:11]} 42. fxg5 {[%emt 0:00:04]} hxg5 {[%emt 0:00:10]} 43. Nb5 {[%emt 0:01:49]} Be5 {[%emt 0:01:11]} 44. Bb6 {[%emt 0:00:10]} Nf6 {[%emt 0:01:14]} 45. Bxc5 {[%emt 0:01:19]} Ne4 {[%emt 0:00:09]} 46. Bf2 {[%emt 0:00:03]} Nxg3+ {[%emt 0:00:21]} 47. Bxg3 {[%emt 0:00:04]} Bxg3 {[%emt 0:00:05]} 48. Nd4+ {[%emt 0:00:02]} Ke5 {[%emt 0:00:32]} 49. Nf3+ {[%emt 0:02:04]} Kf6 {[%emt 0:00:02]} 50. b4 {[%emt 0:01:37]} g4 {[%emt 0:00:04]} 51. Nd2 {[%emt 0:00:29]} Ke5 {[%emt 0:01:10]} 52. c5 {[%emt 0:01:13]} Kd5 {[%emt 0:00:50]} 53. Nf1 {[%emt 0:00:27]} Bf4 {[%emt 0:05:45]} 54. Ne3+ {[%emt 0:00:03]} Ke4 {[%emt 0:00:28]} 55. Nc4 {[%emt 0:00:05]} Kd5 {[%emt 0:03:35]} 56. Ne3+ {[%emt 0:00:00]} Ke5 {[%emt 0:01:01]} 1/2-1/2

[Event "2nd Namma Bengaluru Open-A 2025"]
[Site "Bengaluru"]
[Date "2025.04.17"]
[Round "9.21"]
[White "Aarav Sinha"]
[Black "Padmini, Rout"]
[Result "1-0"]
[Annotator "RC"]
[ECO "B51"]
[WhiteElo "2187"]
[BlackElo "2354"]
[PlyCount "65"]
[EventDate "2025.04.10"]
[EventType "swiss"]
[EventCountry "IND"]
[SourceTitle "playchess.com"]
[Source "ChessBase"]
[SourceQuality "1"]
[TimeControl "5400+30"]

1. e4 {[%emt 0:01:27]} c5 {[%emt 0:00:13]} 2. Nf3 {[%emt 0:00:05]} d6 {[%emt 0:00:50]} 3. Bb5+ {[%emt 0:01:28]} Nd7 {[%emt 0:00:21]} 4. d4 {[%emt 0:00:12]} cxd4 {[%emt 0:00:17]} 5. Qxd4 {[%emt 0:00:05]} a6 {[%emt 0:00:22]} 6. Bxd7+ {[%emt 0:00:15]} Bxd7 {[%emt 0:00:14]} 7. Nc3 {[%emt 0:00:03]} e5 {[%emt 0:03:11]} 8. Qd3 {[%emt 0:00:05]} h6 {[%emt 0:00:53]} 9. O-O {[%emt 0:00:08]} Nf6 {[%emt 0:00:57]} 10. Nd2 {[%emt 0:00:17]} b5 {[%emt 0:08:40]} 11. a4 {[%emt 0:06:53]} b4 {[%emt 0:04:13]} 12. Nd5 {[%emt 0:03:30]} Nxd5 {[%emt 0:03:15]} 13. exd5 {[%emt 0:00:19]} f5 {[%emt 0:02:57]} 14. Nc4 {[%emt 0:06:11]} Be7 {[%emt 0:03:56]} 15. Qg3 {[%emt 0:02:24]} g5 {[%emt 0:05:55]} 16. b3 {[%emt 0:27:28]} Kf7 {[%emt 0:07:37]} 17. Bb2 {[%emt 0:02:53]} Rc8 {[%emt 0:16:28]} 18. f4 {[%emt 0:01:55]} gxf4 {[%emt 0:08:51]} 19. Qh3 {[%emt 0:02:03]} Kg6 {[%emt 0:02:37]} 20. Kh1 {[%emt 0:03:42]} Kh7 {[%emt 0:04:10]} 21. Rae1 {[%emt 0:09:55]} Rf8 {[%emt 0:05:36]} 22. Qd3 {[%emt 0:01:38]} a5 {[%emt 0:04:23]} 23. Qe2 {[%emt 0:08:42]} Rf7 {[%emt 0:04:02]} 24. Qd2 {[%emt 0:00:06]} Rxc4 {[%emt 0:08:18]} 25. bxc4 {[%emt 0:00:13]} Qc7 {[%emt 0:00:04]} 26. Qe2 {[%emt 0:05:48]} Bf8 {[%emt 0:02:39]} 27. Ra1 {[%emt 0:07:30]} Bc8 {[%emt 0:01:06]} 28. Rae1 {[%emt 0:02:04]} Ba6 {[%emt 0:01:42]} 29. Qh5 {[%emt 0:00:22]} Bg7 {[%emt 0:00:30]} 30. Rxf4 {[%emt 0:03:18]} exf4 {[%emt 0:01:13]} 31. Re6 {[%emt 0:00:01]} Bc8 {[%emt 0:00:00]} 32. Bxg7 {[%emt 0:00:39]} Bxe6 {[%emt 0:00:26]} 33. Qxh6+ {[%emt 0:00:02]} 1-0

[Event "2nd Namma Bengaluru Open-A 2025"]
[Site "Bengaluru"]
[Date "2025.04.17"]
[Round "9.22"]
[White "Sherla Prathamesh"]
[Black "Potawad Anirudhha"]
[Result "1-0"]
[Annotator "RC"]
[ECO "A05"]
[WhiteElo "2157"]
[BlackElo "2306"]
[PlyCount "133"]
[EventDate "2025.04.10"]
[EventType "swiss"]
[EventCountry "IND"]
[SourceTitle "playchess.com"]
[Source "ChessBase"]
[SourceQuality "1"]
[TimeControl "5400+30"]

1. Nf3 {[%emt 0:00:04]} Nf6 {[%emt 0:04:13]} 2. b3 {[%emt 0:00:19]} a5 {[%emt 0:00:18]} 3. Bb2 {[%emt 0:00:37]} d5 {[%emt 0:00:58]} 4. g3 {[%emt 0:05:19]} Bf5 {[%emt 0:00:57]} 5. Bg2 {[%emt 0:00:33]} e6 {[%emt 0:00:10]} 6. a3 {[%emt 0:07:17]} Be7 {[%emt 0:02:56]} 7. d3 {[%emt 0:02:31]} c5 {[%emt 0:04:24]} 8. Nh4 {[%emt 0:01:48]} Bg4 {[%emt 0:05:13]} 9. h3 {[%emt 0:01:33]} Bh5 {[%emt 0:01:37]} 10. c4 {[%emt 0:01:38]} Nc6 {[%emt 0:02:38]} 11. Nc3 {[%emt 0:16:37]} d4 {[%emt 0:04:46]} 12. Nb5 {[%emt 0:02:43]} O-O {[%emt 0:03:13]} 13. g4 {[%emt 0:02:51]} Nd7 {[%emt 0:08:44]} 14. Nf3 {[%emt 0:01:15]} Bg6 {[%emt 0:00:58]} 15. h4 {[%emt 0:04:56]} h5 {[%emt 0:08:43]} 16. g5 {[%emt 0:00:59]} e5 {[%emt 0:01:50]} 17. Nd2 {[%emt 0:02:36]} f5 {[%emt 0:00:15]} 18. e4 {[%emt 0:02:35]} dxe3 {[%emt 0:04:09]} 19. fxe3 {[%emt 0:00:39]} e4 {[%emt 0:10:00]} 20. dxe4 {[%emt 0:03:12]} Nde5 {[%emt 0:09:29]} 21. O-O {[%emt 0:01:03]} Qd3 {[%emt 0:08:56]} 22. exf5 {[%emt 0:01:52]} Qxe3+ {[%emt 0:04:56]} 23. Kh1 {[%emt 0:00:06]} Ng4 {[%emt 0:01:36]} 24. Qe1 {[%emt 0:17:48]} Rxf5 {[%emt 0:00:44]} 25. Rxf5 {[%emt 0:01:17]} Bxf5 {[%emt 0:00:13]} 26. Bd5+ {[%emt 0:04:35]} Kh7 {[%emt 0:01:43]} 27. Qxe3 {[%emt 0:00:14]} Nxe3 {[%emt 0:00:01]} 28. Bxc6 {[%emt 0:02:24]} bxc6 {[%emt 0:00:01]} 29. Re1 {[%emt 0:00:18]} Rd8 {[%emt 0:00:51]} 30. Rxe3 {[%emt 0:09:44]} Rxd2 {[%emt 0:00:01]} 31. Rxe7 {[%emt 0:00:19]} Rxb2 {[%emt 0:00:03]} 32. Nd6 {[%emt 0:00:08]} Bg6 {[%emt 0:00:14]} 33. Re3 {[%emt 0:03:11]} Bc2 {[%emt 0:00:51]} 34. Re7 {[%emt 0:02:08]} Rxb3 {[%emt 0:02:03]} 35. Ne8 {[%emt 0:02:51]} Rh3+ {[%emt 0:01:51]} 36. Kg2 {[%emt 0:00:00]} Rxh4 {[%emt 0:00:03]} 37. Kf2 {[%emt 0:00:00]} Rf4+ {[%emt 0:02:11]} 38. Ke3 {[%emt 0:00:12]} Rxc4 {[%emt 0:00:45]} 39. Kd2 {[%emt 0:00:54]} Bf5 {[%emt 0:01:35]} 40. Rxg7+ {[%emt 0:00:40]} Kh8 {[%emt 0:00:01]} 41. g6 {[%emt 0:00:10]} Rd4+ {[%emt 0:00:58]} 42. Kc3 {[%emt 0:00:44]} Rd3+ {[%emt 0:01:10]} 43. Kc4 {[%emt 0:00:06]} Bxg6 {[%emt 0:03:08]} 44. Rxg6 {[%emt 0:00:05]} Rd8 {[%emt 0:00:03]} 45. Nf6 {[%emt 0:00:33]} h4 {[%emt 0:00:02]} 46. Kxc5 {[%emt 0:01:06]} Rf8 {[%emt 0:01:03]} 47. Kxc6 {[%emt 0:00:46]} h3 {[%emt 0:01:37]} 48. Ng4 {[%emt 0:00:11]} Kh7 {[%emt 0:00:24]} 49. Rh6+ {[%emt 0:00:10]} Kg7 {[%emt 0:00:04]} 50. Rxh3 {[%emt 0:00:04]} Rf5 {[%emt 0:00:28]} 51. Ne3 {[%emt 0:00:21]} Re5 {[%emt 0:00:43]} 52. Nc4 {[%emt 0:00:07]} Rg5 {[%emt 0:00:15]} 53. Rb3 {[%emt 0:00:44]} Kf6 {[%emt 0:00:20]} 54. Rb5 {[%emt 0:00:47]} Rg4 {[%emt 0:00:04]} 55. Rc5 {[%emt 0:00:05]} a4 {[%emt 0:01:32]} 56. Kb5 {[%emt 0:00:07]} Ke6 {[%emt 0:00:21]} 57. Kxa4 {[%emt 0:00:05]} Kd7 {[%emt 0:00:02]} 58. Kb5 {[%emt 0:00:08]} Rg3 {[%emt 0:00:06]} 59. a4 {[%emt 0:00:19]} Rb3+ {[%emt 0:00:10]} 60. Ka6 {[%emt 0:00:08]} Kd8 {[%emt 0:01:42]} 61. a5 {[%emt 0:00:06]} Kd7 {[%emt 0:00:12]} 62. Ka7 {[%emt 0:00:14]} Rb1 {[%emt 0:01:07]} 63. a6 {[%emt 0:00:18]} Rb4 {[%emt 0:00:04]} 64. Nb6+ {[%emt 0:00:14]} Kd6 {[%emt 0:00:01]} 65. Rc4 {[%emt 0:00:28]} Rb1 {[%emt 0:00:17]} 66. Kb7 {[%emt 0:00:10]} Rh1 {[%emt 0:00:15]} 67. Rc6+ {[%emt 0:00:05]} 1-0

[Event "2nd Namma Bengaluru Open-A 2025"]
[Site "Bengaluru"]
[Date "2025.04.17"]
[Round "9.23"]
[White "Ajay Santhosh Parvathareddy"]
[Black "Ashwin Sairam"]
[Result "0-1"]
[Annotator "RC"]
[ECO "B07"]
[WhiteElo "2297"]
[BlackElo "2074"]
[PlyCount "50"]
[EventDate "2025.04.10"]
[EventType "swiss"]
[EventCountry "IND"]
[SourceTitle "playchess.com"]
[Source "ChessBase"]
[SourceQuality "1"]
[TimeControl "5400+30"]

1. e4 {[%emt 0:01:40]} d6 {[%emt 0:00:12]} 2. d4 {[%emt 0:00:06]} Nf6 {[%emt 0:00:06]} 3. Nc3 {[%emt 0:00:03]} Nbd7 {[%emt 0:00:08]} 4. f4 {[%emt 0:00:04]} e5 {[%emt 0:00:10]} 5. Be3 {[%emt 0:00:03]} c6 {[%emt 0:00:29]} 6. Qf3 {[%emt 0:00:04]} b5 {[%emt 0:00:49]} 7. O-O-O {[%emt 0:00:07]} b4 {[%emt 0:00:15]} 8. Nce2 {[%emt 0:00:02]} Qa5 {[%emt 0:00:08]} 9. Kb1 {[%emt 0:00:03]} Nb6 {[%emt 0:00:12]} 10. h3 {[%emt 0:00:06]} Be6 {[%emt 0:19:56]} 11. Nc1 {[%emt 0:00:02]} d5 {[%emt 0:00:34]} 12. fxe5 {[%emt 0:27:04]} dxe4 {[%emt 0:10:36]} 13. Qe2 {[%emt 0:01:53]} Bc4 {[%emt 0:09:32]} 14. Qf2 {[%emt 0:23:43]} Nfd5 {[%emt 0:00:38]} 15. Be2 {[%emt 0:04:18]} Nc3+ {[%emt 0:12:24]} 16. bxc3 {[%emt 0:00:46]} Qa3 {[%emt 0:00:02]} 17. Bxc4 {[%emt 0:06:24]} Nxc4 {[%emt 0:00:06]} 18. Nd3 {[%emt 0:00:04]} bxc3 {[%emt 0:00:05]} 19. Bc1 {[%emt 0:00:05]} Rb8+ {[%emt 0:00:03]} 20. Ka1 {[%emt 0:00:09]} Rb2 {[%emt 0:00:09]} 21. Bxb2 {[%emt 0:01:27]} cxb2+ {[%emt 0:00:04]} 22. Kb1 {[%emt 0:00:05]} Qc3 {[%emt 0:00:01]} 23. a4 {[%emt 0:00:15]} Qa3 {[%emt 0:00:03]} 24. c3 {[%emt 0:00:08]} Qa1+ {[%emt 0:00:03]} 25. Kc2 {[%emt 0:00:03]} Qxa4+ {[%emt 0:00:02]} 0-1